Cogmind - Beta 16 @@@ ROGUE MODE // 2025.11.11 @ 06:23:48 Player: shapeshifter Result: Destroyed by S-27 Virus with Autogun Performance ------------- Evolutions (4) 2000 Regions Visited (7) 1400 Robots Destroyed (0) 0 Value Destroyed (10) 10 Prototype IDs (2) 40 Alien Tech Used (0) 0 Bonus (1325) 1325 TOTAL SCORE: 4775 Bonus ------- Pacifist 1325 Cogmind --------- Core Integrity 0/850 Matter 163/300 Energy 99/100 System Corruption 10% Temperature Cool (0) Movement Core (50) Location -6/Factory Parts ------- > --- POWER (1) -------- (None) > --- PROPULSION (7) --- (None) > --- UTILITY (5) ------ Improved Signal Interpreter Terrain Scan Processor System Shield > --- WEAPON (2) ------- (None) > --- INVENTORY (5) ---- Ion Engine Light Fission Core Fusion Compressor Weight Redist. System Heavy Rocket Launcher Peak State ------------ > --- POWER ------------ Light Fission Core > --- PROPULSION ------- Cesium-ion Thruster > --- UTILITY ---------- Improved Sensor Array Improved Signal Interpreter System Shield System Shield > --- WEAPON ----------- Scythe Scythe > --- INVENTORY -------- Ion Engine Heavy Deuterium Engine Weight Redist. System Improved Terrain Scanner Heavy Rocket Launcher [Rating: 27] Favorites ----------- Power Light Fission Core Power Core Light Fission Core Propulsion Light Treads Treads Light Treads Flight Unit Cesium-ion Thruster Utility System Shield Device Improved Sensor Array Processor Improved Signal Interpreter Hackware System Shield Weapon Scythe Ballistic Gun Light Assault Rifle Slashing Weapon Scythe Build | -11 -10 -9 -8 -7 -6 -6 -6 ------- Run | Yrd Mat Mat Mat Fac Fac Was Fac Slots Evolved 8 | . . 2 2 2 2 . . Power . | . . . . . . . . Propulsion 5 | . . 2 1 1 1 . . Utility 3 | . . . 1 1 1 . . Weapon . | . . . . . . . . Parts Attached 15 | 4 . . 4 4 3 . . Power 1 | . . . . . 1 . . Engine . | . . . . . . . . Core 1 | . . . . . 1 . . Reactor . | . . . . . . . . Propulsion 3 | 2 . . 1 . . . . Treads 2 | 2 . . . . . . . Leg . | . . . . . . . . Wheel . | . . . . . . . . Hover . | . . . . . . . . Flight 1 | . . . 1 . . . . Utility 7 | . . . 2 3 2 . . Device 3 | . . . 1 1 1 . . Storage . | . . . . . . . . Processor 2 | . . . . 1 1 . . Hackware 2 | . . . 1 1 . . . Protection . | . . . . . . . . Artifact . | . . . . . . . . Weapon 4 | 2 . . 1 1 . . . Energy Gun . | . . . . . . . . Energy Cannon . | . . . . . . . . Ballistic Gun 2 | 2 . . . . . . . Ballistic Cannon . | . . . . . . . . Launcher . | . . . . . . . . Special Weapon . | . . . . . . . . Impact Weapon . | . . . . . . . . Slashing Weapon 2 | . . . 1 1 . . . Piercing Weapon . | . . . . . . . . Special Melee Weapon . | . . . . . . . . Unidentified Prototypes . | . . . . . . . . Parts Lost 5 | . . . 1 . 2 1 1 Power . | . . . . . . . . Propulsion 1 | . . . . . 1 . . Utility 3 | . . . 1 . 1 . 1 Weapon 1 | . . . . . . 1 . Highest Loss Streak 2 | . . . 1 . 2 1 1 To Critical Strikes . | . . . . . . . . Average Backups 3 | 1 3 3 3 4 5 4 4 Power 1 | . 2 2 2 2 2 2 2 Propulsion . | . . . . . . . . Utility . | . . . . . 2 1 1 Weapon 1 | . 1 1 1 1 1 1 1 Tool/Special . | . . . . . . . . Unused Backups 7 | . . . . 2 1 . 4 Power 4 | . . . . 1 1 . 2 Propulsion . | . . . . . . . . Utility 1 | . . . . . . . 1 Weapon 2 | . . . . 1 . . 1 Tool/Special . | . . . . . . . . Average Slot Usage (%) 37 | . 57 44 30 37 44 37 23 Treads 5 | . 28 22 10 . . . . Flight 3 | . . . 4 7 4 . . Device 3 | . . . 2 2 5 6 3 Processor 5 | . . . . 6 8 13 13 Hackware 7 | . . . 1 10 13 11 6 Ballistic Gun 4 | . 28 22 4 . . . . Slashing Weapon 6 | . . . 7 8 10 4 . Peak Build Rating 27 | 4 4 4 11 22 27 18 12 Average Rating 12 | 2 4 4 7 15 20 16 10 On Entrance 9 | . 4 4 4 9 22 18 12 Avg Prop Armor Cover (%) 30 | 35 29 29 31 . . . . Naked Turns . | . . . . . . . . Heaviest Build 5 | 2 2 2 3 5 5 3 1 Greatest Support 6 | 3 3 3 5 6 6 3 3 Greatest Overweight (x) . | . . . . . . . . Average Overweight (x) . | . . . . . . . . Largest Inventory Capacity 5 | 5 5 5 5 5 5 5 5 Average Capacity 5 | 5 5 5 5 5 5 5 5 Most Carried 5 | 5 3 3 4 5 5 4 5 Average Carried 3 | 1 3 3 3 4 4 4 4 Final Capacity 5 | 5 5 5 5 5 5 5 5 Final Carried 5 | 3 3 3 3 5 4 4 5 Class Distribution -------------------- 59% | Mutant 40% | Hacker-Mutant Dominant Class ---------------- Mutant | -10/Materials Mutant | -9/Materials Mutant | -8/Materials Hacker-Mutant | -7/Factory Hacker-Mutant | -6/Factory Mutant | -6/Waste Mutant | -6/Factory Resources | -11 -10 -9 -8 -7 -6 -6 -6 ----------- Run | Yrd Mat Mat Mat Fac Fac Was Fac Matter Collected 188 | 158 . . . . . . 30 Remotely . | . . . . . . . . Salvage Created . | . . . . . . . . Parts . | . . . . . . . . Haulers Intercepted . | . . . . . . . . Recyclers Shooed . | . . . . . . . . Parts Field Recycled . | . . . . . . . . Retrieved Matter . | . . . . . . . . Parts Self-Destructed . | . . . . . . . . Prevented . | . . . . . . . . Parts Restored . | . . . . . . . . Kills | -11 -10 -9 -8 -7 -6 -6 -6 ------- Run | Yrd Mat Mat Mat Fac Fac Was Fac Combat Hostiles Destroyed . | . . . . . . . . Classes Destroyed . | . . . . . . . . Best Kill Streak . | . . . . . . . . Combat Bots Only . | . . . . . . . . Max Kills in Single Turn . | . . . . . . . . Gunslinging . | . . . . . . . . Exploded . | . . . . . . . . Melee . | . . . . . . . . Uniques/NPCs Destroyed . | . . . . . . . . Combat | -11 -10 -9 -8 -7 -6 -6 -6 -------- Run | Yrd Mat Mat Mat Fac Fac Was Fac Hostile Shots Fired 108 | . . 2 26 . 35 1 44 Missed 36 | . . 2 11 . 11 . 12 Hits 72 | . . . 15 . 24 1 32 Melee 1 | . . . . . . 1 . Projectile 71 | . . . 15 . 24 . 32 Critical Strikes 3 | . . . . . . 1 2 Damage Taken 1204 | . . . 223 . 452 36 493 Core 915 | . . . 61 . 343 36 475 Absorbed by Shields . | . . . . . . . . Core Remaining (%) 97 | 100 100 100 88 100 . . . Volleys Fired . | . . . . . . . . Largest . | . . . . . . . . Hottest . | . . . . . . . . Shots Fired . | . . . . . . . . Gun . | . . . . . . . . Cannon . | . . . . . . . . Launcher . | . . . . . . . . Special . | . . . . . . . . Kinetic . | . . . . . . . . Thermal . | . . . . . . . . Explosive . | . . . . . . . . Electromagnetic . | . . . . . . . . Robot Hit Streak . | . . . . . . . . Robot Miss Streak . | . . . . . . . . Penetration Max . | . . . . . . . . Secondary Targets . | . . . . . . . . Shots Hit Robots . | . . . . . . . . Core Hits . | . . . . . . . . Critical Kills . | . . . . . . . . Critical Parts Destroyed . | . . . . . . . . Critical Strikes . | . . . . . . . . Melee Attacks 7 | . . . 1 4 2 . . Impact . | . . . . . . . . Slashing 7 | . . . 1 4 2 . . Piercing . | . . . . . . . . Sneak Attacks . | . . . . . . . . Combat Hostiles . | . . . . . . . . Follow-up Attacks . | . . . . . . . . Damage Inflicted 8 | . . . . . . . 8 Guns . | . . . . . . . . Cannons . | . . . . . . . . Explosions . | . . . . . . . . Melee . | . . . . . . . . Ramming 8 | . . . . . . . 8 Kinetic . | . . . . . . . . Thermal . | . . . . . . . . Explosive . | . . . . . . . . Electromagnetic . | . . . . . . . . Impact . | . . . . . . . . Slashing . | . . . . . . . . Piercing . | . . . . . . . . Highest Corruption 10 | . . . . . . 10 10 Average Corruption 10 | . . . . . . 10 10 Corruption Purged . | . . . . . . . . Corruption Blocked . | . . . . . . . . Effects 4 | . . . . . . 1 3 Message Errors 1 | . . . . . . 1 . Heat Flow Errors 1 | . . . . . . . 1 Misdirections 2 | . . . . . . . 2 Overload Shots . | . . . . . . . . Overflow Damage . | . . . . . . . . Projectiles . | . . . . . . . . Explosions . | . . . . . . . . Melee . | . . . . . . . . Knockbacks . | . . . . . . . . Impact . | . . . . . . . . Kinetic . | . . . . . . . . Secondary . | . . . . . . . . Self-Inflicted Damage 4 | . . . . . . . 4 Shots . | . . . . . . . . Rammed 1 | . . . . . . . 1 Targets Rammed 1 | . . . . . . . 1 Kicked . | . . . . . . . . Crushed . | . . . . . . . . Highest Temperature 84 | . . . . . . . 84 Average Temperature 47 | . . . . . . . 47 Received Heat Transfer 315 | . . . 99 . 216 . . Siege Activations . | . . . . . . . . Martial Activations . | . . . . . . . . Shielding Activations . | . . . . . . . . Robots Disrupted . | . . . . . . . . Combat Hostiles . | . . . . . . . . Robots Corrupted . | . . . . . . . . Combat Hostiles . | . . . . . . . . Parts Fried . | . . . . . . . . Impact Corruptions . | . . . . . . . . Robots Melted . | . . . . . . . . Combat Hostiles . | . . . . . . . . Parts Melted . | . . . . . . . . Heat Transferred . | . . . . . . . . Parts Sabotaged . | . . . . . . . . Parts Stolen . | . . . . . . . . Parts Stripped . | . . . . . . . . Power Chain Reactions . | . . . . . . . . Alert | -11 -10 -9 -8 -7 -6 -6 -6 ------- Run | Yrd Mat Mat Mat Fac Fac Was Fac Maximum Alert Level . | . . . . . . . . Low Security (%) 100 | 100 100 100 100 100 100 100 100 Level 1 . | . . . . . . . . Level 2 . | . . . . . . . . Level 3 . | . . . . . . . . Level 4 . | . . . . . . . . Level 5 . | . . . . . . . . High Security . | . . . . . . . . Max Security . | . . . . . . . . Peak Influence 112 | . . 15 112 83 57 15 . Initial 50 | . . . . 50 26 9 . Average 26 | . . 7 24 53 24 7 . Influence Increases 345 | . . 20 148 85 77 15 . Successful Hack 84 | . . 20 12 52 . . . Disable Machine 15 | . . . . 15 . . . Destroy Structure 6 | . . . 1 3 2 . . Partial Spotted 30 | . . . 15 . . 15 . Lose Combat Pursuer 210 | . . . 120 15 75 . . Influence Decreases 345 | . . 20 36 142 105 42 . Entered New Map 109 | . . . . 62 29 18 . Time Decay 196 | . . 20 26 80 56 14 . Lost Part 40 | . . . 10 . 20 10 . Squads Dispatched 2 | . . . 1 . 1 . . Investigation 1 | . . . . . 1 . . Extermination . | . . . . . . . . Reinforcement 1 | . . . 1 . . . . Assault . | . . . . . . . . Garrison . | . . . . . . . . Intercept . | . . . . . . . . Searches Triggered . | . . . . . . . . Construction Impeded . | . . . . . . . . Haulers Reinforced . | . . . . . . . . Active Scanning Responses . | . . . . . . . . Cargo Convoy Interrupts . | . . . . . . . . Stealth | -11 -10 -9 -8 -7 -6 -6 -6 --------- Run | Yrd Mat Mat Mat Fac Fac Was Fac Distress Signals 1 | . . . . . . . 1 Communications Jammed . | . . . . . . . . Distress Signals . | . . . . . . . . Times Spotted 50 | . . 3 19 1 14 5 8 Peak Tracking Total 11 | . . 3 11 1 9 5 6 Tactical Retreats 4 | . . . 2 1 1 . . Traps | -11 -10 -9 -8 -7 -6 -6 -6 ------- Run | Yrd Mat Mat Mat Fac Fac Was Fac Traps Triggered 1 | . . . . . 1 . . Indirectly . | . . . . . . . . Trap Hack Attempts . | . . . . . . . . Triggered . | . . . . . . . . Disarmed 5 | . . . . 5 . . . Reprogrammed . | . . . . . . . . Reused . | . . . . . . . . Traps Extracted . | . . . . . . . . Installed . | . . . . . . . . Triggered . | . . . . . . . . Machines | -11 -10 -9 -8 -7 -6 -6 -6 ---------- Run | Yrd Mat Mat Mat Fac Fac Was Fac Machines Disabled 1 | . . . . 1 . . . Max in Single Turn 1 | . . . . 1 . . . Machines Repaired . | . . . . . . . . Machines Dismantled . | . . . . . . . . Machines Sabotaged . | . . . . . . . . Overloaded Fab Kills . | . . . . . . . . Hacking | -11 -10 -9 -8 -7 -6 -6 -6 --------- Run | Yrd Mat Mat Mat Fac Fac Was Fac Machines Accessed 19 | . 1 2 7 7 2 . . Terminals 18 | . 1 2 7 6 2 . . Fabricators . | . . . . . . . . Repair Stations . | . . . . . . . . Recycling Units . | . . . . . . . . Scanalyzers 1 | . . . . 1 . . . Garrison Access . | . . . . . . . . Total Hacks 64 | . 1 8 24 26 5 . . Successful 23 | . . 3 8 11 1 . . Failed 41 | . 1 5 16 15 4 . . Catastrophic 11 | . 1 1 2 4 3 . . Database Lockouts . | . . . . . . . . Manual 32 | . . 3 17 9 3 . . Terminals 60 | . 1 8 24 22 5 . . Fabricators . | . . . . . . . . Repair Stations . | . . . . . . . . Recycling Units . | . . . . . . . . Scanalyzers 4 | . . . . 4 . . . Garrison Access . | . . . . . . . . Terminal Hacks 13 | . . 3 4 6 . . . Prototype ID Bank 1 | . . . 1 . . . . Branch Access Points 1 | . . . 1 . . . . Disarm Traps 3 | . . . . 3 . . . Hauler Manifests 1 | . . . 1 . . . . Registered Prototypes 2 | . . 1 . 1 . . . Zone Layout 5 | . . 2 1 2 . . . Fabricator Hacks . | . . . . . . . . Repair Station Hacks . | . . . . . . . . Recycling Unit Hacks . | . . . . . . . . Scanalyzer 2 | . . . . 2 . . . Retrieve Study 2 | . . . . 2 . . . Garrison Access Hacks . | . . . . . . . . Unauthorized Hacks 8 | . . . 4 3 1 . . Terminals 8 | . . . 4 3 1 . . Assimilate 2 | . . . 2 . . . . Botnet 4 | . . . . 3 1 . . Skim 2 | . . . 2 . . . . Fabricators . | . . . . . . . . Repair Stations . | . . . . . . . . Recycling Units . | . . . . . . . . Scanalyzers . | . . . . . . . . Garrison Access . | . . . . . . . . Data Cores Recovered . | . . . . . . . . Used . | . . . . . . . . Hacking Detections 17 | . 1 2 6 6 2 . . Full Trace Events 1 | . . . . . 1 . . Feedback Events . | . . . . . . . . Feedback Blocked . | . . . . . . . . Robot Schematics Acquired . | . . . . . . . . Robots Built . | . . . . . . . . Authchips . | . . . . . . . . Time . | . . . . . . . . Total Robot Build Rating . | . . . . . . . . Part Schematics Acquired . | . . . . . . . . Parts Built . | . . . . . . . . Authchips . | . . . . . . . . Time . | . . . . . . . . Total Part Build Rating . | . . . . . . . . Part Studies Acquired 2 | . . . . 2 . . . Parts Repaired . | . . . . . . . . Time . | . . . . . . . . Parts Recycled . | . . . . . . . . Recycled Matter . | . . . . . . . . Retrieved Matter . | . . . . . . . . Retrieved Components . | . . . . . . . . Parts Scanalyzed . | . . . . . . . . Part Schematics Acquired . | . . . . . . . . Parts Damaged . | . . . . . . . . Bothacking | -11 -10 -9 -8 -7 -6 -6 -6 ------------ Run | Yrd Mat Mat Mat Fac Fac Was Fac Used RIF Installer . | . . . . . . . . Robots Hacked . | . . . . . . . . Non-combat . | . . . . . . . . Combat . | . . . . . . . . Robot Hacks Applied . | . . . . . . . . Relay Couplers Released . | . . . . . . . . Fabnet Peak Effective % . | . . . . . . . . Robots Rewired . | . . . . . . . . Allies Hacked . | . . . . . . . . Hacks Repelled . | . . . . . . . . Allies | -11 -10 -9 -8 -7 -6 -6 -6 -------- Run | Yrd Mat Mat Mat Fac Fac Was Fac Total Allies 2 | . . . 2 . . . . Largest Group 1 | . . . 1 . . . . Highest-Rated Group 10 | . . . 10 . . . . Highest-Rated Ally 10 | . . . 10 . . . . Total Orders . | . . . . . . . . Ally Attacks . | . . . . . . . . Total Damage . | . . . . . . . . Kills . | . . . . . . . . Allies Corrupted . | . . . . . . . . Allies Melted . | . . . . . . . . Intel | -11 -10 -9 -8 -7 -6 -6 -6 ------- Run | Yrd Mat Mat Mat Fac Fac Was Fac Active Infowar (turns) 248 | . . . . 64 114 42 28 Sensors 171 | . . . . 64 107 . . Terrain 77 | . . . . . 7 42 28 Robot Analysis Total . | . . . . . . . . Derelict Logs Recovered . | . . . . . . . . Drone Launches . | . . . . . . . . Drone Recoveries . | . . . . . . . . Exploration | -11 -10 -9 -8 -7 -6 -6 -6 ------------- Run | Yrd Mat Mat Mat Fac Fac Was Fac Turns Passed 625 | 30 26 44 137 179 120 42 47 Spaces Moved 1372 | 37 52 87 295 447 283 84 87 Core 535 | 37 52 87 116 . 72 84 87 Treads . | . . . . . . . . Legs . | . . . . . . . . Wheels . | . . . . . . . . Hover . | . . . . . . . . Flight 837 | . . . 179 447 211 . . Fastest Speed 35 | 50 50 50 35 35 35 50 50 Average Speed 40 | 50 50 50 41 35 38 50 50 Slowest Speed 75 | 50 50 50 75 35 50 50 50 Overloaded Moves . | . . . . . . . . Propulsion Burnouts . | . . . . . . . . Robots Hopped 6 | . . . 2 . 4 . . Potential Cave-ins . | . . . . . . . . Cave-ins Triggered . | . . . . . . . . Exploration Rate (%) 21 | 3 14 10 35 16 11 74 5 Regions Visited 7 Branch Regions . Pre-discovered Areas . | . . . . . . . . Known Exits Taken 1 | . . . . 1 . . . Unknown Exits Taken 4 | 1 1 1 1 . . . . Scrap Searched . | . . . . . . . . Spaces Dug 6 | . . . 1 3 2 . . Terrain Destroyed 6 | . . . 1 3 2 . . Melee 6 | . . . 1 3 2 . . Projectile . | . . . . . . . . AOE . | . . . . . . . . Terrain Rammed . | . . . . . . . . Walls Destroyed . | . . . . . . . . Machines Disabled . | . . . . . . . . Actions | -11 -10 -9 -8 -7 -6 -6 -6 --------- Run | Yrd Mat Mat Mat Fac Fac Was Fac Total 1413 | 47 51 86 307 462 287 83 90 Wait 2 | . . . 2 . . . . Move 1356 | 36 51 86 290 446 277 83 87 Hop 4 | . . . 2 . 2 . . Pick Up 18 | 7 . . 4 6 . . 1 Fast Attach 4 | . . . . 2 2 . . Attach 11 | 4 . . 4 2 1 . . Detach 1 | . . . . . 1 . . Swap . | . . . . . . . . Drop 8 | . . . 4 2 2 . . Fire . | . . . . . . . . Melee 7 | . . . 1 4 2 . . Ram 2 | . . . . . . . 2 Kick . | . . . . . . . . Crush . | . . . . . . . . Escape Stasis . | . . . . . . . . Rewire . | . . . . . . . . Trap . | . . . . . . . . Miscellaneous . | . . . . . . . . Route ------- -11/Scrapyard -10/Materials -9/Materials -8/Materials (discovered 3 exits: *Fac / *Sto x2) -7/Factory (discovered 2 exits: *Fac / *Low) -6/Factory -6/Waste -6/Factory History --------- Turn | Location | Event 22 | -11/Scrapyard | Discovered new exit (range 15) 31 | -11/Scrapyard | Entered Materials 55 | -10/Materials | Discovered new exit (range 6) 57 | -10/Materials | Entered another Materials area 57 | -9/Materials | Evolved 2 slots: Propulsion x2 95 | -9/Materials | Discovered new exit (range 13) 101 | -9/Materials | Entered another Materials area 101 | -8/Materials | Evolved 2 slots: Propulsion x1, Utility x1 187 | -8/Materials | Discovered new exit (range 14) 235 | -8/Materials | Identified exit to Storage 237 | -8/Materials | Discovered new exit (range 5) 238 | -8/Materials | Entered Factory 238 | -7/Factory | Evolved 2 slots: Propulsion x1, Utility x1 304 | -7/Factory | Build established: Mutant 385 | -7/Factory | Discovered new exit (range 5) 386 | -7/Factory | Identified exit to Lower Caves 411 | -7/Factory | Discovered new exit (range 14) 416 | -7/Factory | Identified exit to Factory 417 | -7/Factory | Entered another Factory area 417 | -6/Factory | Evolved 2 slots: Propulsion x1, Utility x1 428 | -6/Factory | Discovered new exit (range 10) 432 | -6/Factory | Identified exit to Lower Caves 537 | -6/Factory | Sucked down chute 537 | -6/Factory | Entered Waste 552 | -6/Waste | EMP discharged 552 | -6/Waste | System corruption reached 10% 556 | -6/Waste | Spotted C-40 Crusher 558 | -6/Waste | Spotted C-40 Crusher 561 | -6/Waste | Spotted C-40 Crusher 562 | -6/Waste | Spotted C-40 Crusher 562 | -6/Waste | Spotted C-40 Crusher 566 | -6/Waste | Crushed by Compactor (1 part destroyed, 1 dropped) 568 | -6/Waste | Spotted C-40 Crusher 571 | -6/Waste | Discovered new exit (range 12) 579 | -6/Waste | Identified exit to Factory 579 | -6/Waste | Entered Factory 609 | -6/Factory | Core integrity fell below 50% 620 | -6/Factory | Core integrity fell below 20% 626 | -6/Factory | Destroyed by S-27 Virus with Autogun Last Messages --------------- 00566_ System Shield crushed. 00571_ EXIT=FOUND 00579_ EXIT=IDENTIFIED: FACTORY LOCATION=FACTORY GOAL=ESCAPE 00591_ K-01 Serf collects debris. 00600_ Acquired Fusion Compressor. 00604_ ALERT: All DSF locations entering lockdown mode. 00604_ K-01 Serf destroyed. 00604_ Acquired 30 matter. 00607_ Imp. Terrain Scanner destroyed. 00608_ Slammed into M-28 Smith. 00609_ System corrupted: Heat flow error (+121). 00616_ C-30 ARC bursts open, deploying its payload. 00616_ H-66 Slayer unfolds itself. 00616_ Penetrated by Slug. 00616_ K-01 Serf collects debris. 00619_ Penetrated by Slug. 00619_ K-01 Serf collects debris. 00622_ Penetrated by Slug. Map ----- +----------------------------------------------------+ | | | | | | | ???????????????????????????????????? | | ???????????????????????????????????? | | ???????????????????????????????????? | | ???????????????????????????????????? | | ???????????????????????????????????? | | ???????????????????????????????????? | | ???????????????????????????????????? | | ???????????????????????#+##????????? | | ?????????????????????# ????????? | | ?????????????????????# #???????? | | ?????????????????????# T???????? | | ?????????????????????# ???????? | | ?????????????????????+ #???????? | | ?????????????????????# #???????? | | ?????????????????????# #???????? | | ?????????????????????# #???????? | | ?????????????????????# #???????? | | ?????????????????????# #???""? ? | | ?????????????????????# #??""" # | | ?????????????????????# #??""" # | | ?????????????????????# #?"""" # | | ?????????????????????# #? # | | ?????????????????????# @ # !! # | | ????????? ???????????# # ! # | | ??????? ??????????# ; # | | ??????? ?????????# k # ]# | | ?????? ?????????# # # | | ?????? ????????# #?"""" *# | | ????? ######### #?"""" # | | ????? " #??""" # | | ????? %" #??""" ?# | | ????? #???????? | | ???? #???????? | | ????? s #???????? | | ????????###+### s########???????? | | ??????????????# s #??????????????? | | ??????????????# #??????????????? | | ??????????????# #??????????????? | | ??????????????# #??????????????? | | ??????????????# #?????#????????? | | ??????????????# #??????????????? | | ??????????????# #??????????????? | | ??????????????# ########?? ????? | | ??????????????# #???????? | | ??????????????# #???? ??? | | ??????????????# # ??????? | | ????????????? # +?? ??" ? | +----------------------------------------------------+ Best States ------------- Heat Dissipation 37 Energy Generation 5 Energy Capacity 100 Matter Stores 218 Matter Capacity 300 Sight Range 16 Robot Scan Range 15 Terrain Scan Range 16 Terrain Scan Density 85 Evasion (%) 71 Defensive Hacking 20 Item Schematics ----------------- None Robot Schematics ------------------ None Fabricated ------------ Nothing Repaired ---------- Nothing Studied --------- Cesium-ion Thruster | -7/Factory | Hacked Ion Engine | -7/Factory | Hacked Alien Tech Used ----------------- None Achievements -------------- None Challenges ------------ None Game ------ Seed JunkRemoteDetector Manual? 0 Play Time 00:11:35 Cumulative 488.7 hours Start 2025.11.11 @ 06:07:13 End 2025.11.11 @ 06:23:48 Sessions 2 Manual Loads 0 Difficulty Rogue Special Mode None Game No. 646 Rogue 646 Adventurer 0 Explorer 0 Win Type - Total 15 Types 7/0/2/2/1/0/2/1/0/0 Lore% 90 Gallery% 85 Achievement% 65 Wizard Run 0 Options --------- Layout 0 ASCII 0 Keyboard 0 Movement Mouse Keybinds 0 Fullscreen 1 Font 24/Terminus Map View 76x50 Zoom Use 0% Tactical HUD 1 Map Filters NONE Filters NONE Steam 1 RUN: 31eb38fc-f701-4d43-8b11-c29914ce349d